[Event "elllobregat Open Chess TnmT- 2nd Edition 2021"]
[Site "Castelldefels, Spain"]
[Date "2021.12.06"]
[Round "7.1"]
[White "Safarli, Eltaj"]
[Black "Santos Latasa, Jaime"]
[Result "1/2-1/2"]
[TimeControl "90min/40moves + 30min/end + 30sec increment per move starting from move 1"]
[WhiteTitle "GM"]
[BlackTitle "GM"]
[WhiteFideId "13402129"]
[BlackFideId "2293307"]
[WhiteElo "2579"]
[BlackElo "2633"]

1. e4 {[%clk 01:30:11]} {[%emt 00:00:12]} e5 {[%clk 01:30:53]} {[%emt
00:00:07]} 2. Nf3 {[%clk 01:30:32]} {[%emt 00:00:08]} Nc6 {[%clk 01:31:18]}
{[%emt 00:00:06]} 3. Bc4 {[%clk 01:30:37]} {[%emt 00:00:25]} Nf6 {[%clk
01:31:03]} {[%emt 00:00:45]} 4. d3 {[%clk 01:30:59]} {[%emt 00:00:08]} Bc5
{[%clk 01:31:21]} {[%emt 00:00:11]} 5. Nc3 {[%clk 01:31:16]} {[%emt 00:00:13]}
a6 {[%clk 01:30:39]} {[%emt 00:01:13]} 6. Bg5 {[%clk 01:31:19]} {[%emt
00:00:26]} h6 {[%clk 01:30:31]} {[%emt 00:00:39]} 7. Bxf6 {[%clk 01:31:39]}
{[%emt 00:00:11]} Qxf6 {[%clk 01:30:54]} {[%emt 00:00:06]} 8. Nd5 {[%clk
01:32:04]} {[%emt 00:00:04]} Qd8 {[%clk 01:31:17]} {[%emt 00:00:07]} 9. c3
{[%clk 01:32:30]} {[%emt 00:00:05]} d6 {[%clk 01:29:52]} {[%emt 00:01:55]} 10.
d4 {[%clk 01:32:54]} {[%emt 00:00:05]} Ba7 {[%clk 01:29:38]} {[%emt 00:00:45]}
11. dxe5 {[%clk 01:33:10]} {[%emt 00:00:14]} Nxe5 {[%clk 01:30:01]} {[%emt
00:00:06]} 12. Nxe5 {[%clk 01:33:34]} {[%emt 00:00:06]} dxe5 {[%clk 01:30:27]}
{[%emt 00:00:05]} 13. Qh5 {[%clk 01:33:53]} {[%emt 00:00:11]} O-O {[%clk
01:30:43]} {[%emt 00:00:15]} 14. Qxe5 {[%clk 01:33:17]} {[%emt 00:01:05]} Re8
{[%clk 01:31:04]} {[%emt 00:00:09]} 15. Qf4 {[%clk 01:33:38]} {[%emt 00:00:08]}
Qd6 {[%clk 01:31:26]} {[%emt 00:00:10]} 16. Qxd6 {[%clk 01:33:23]} {[%emt
00:00:44]} Rxe4+ {[%clk 01:31:50]} {[%emt 00:00:05]} 17. Ne3 {[%clk 01:33:42]}
{[%emt 00:00:11]} cxd6 {[%clk 01:32:14]} {[%emt 00:00:08]} 18. Bd5 {[%clk
01:34:02]} {[%emt 00:00:09]} Re7 {[%clk 01:31:57]} {[%emt 00:00:46]} 19. O-O-O
{[%clk 01:30:36]} {[%emt 00:03:54]} Bxe3+ {[%clk 01:32:16]} {[%emt 00:00:14]}
20. fxe3 {[%clk 01:31:00]} {[%emt 00:00:06]} Be6 {[%clk 01:32:36]} {[%emt
00:00:11]} 21. Bf3 {[%clk 01:30:29]} {[%emt 00:01:00]} Rd8 {[%clk 01:32:19]}
{[%emt 00:00:47]} 22. a4 {[%clk 01:00:35]} {[%emt 00:30:25]} a5 {[%clk
01:17:55]} {[%emt 00:14:54]} 23. Rd4 {[%clk 00:59:18]} {[%emt 00:01:46]} Kf8
{[%clk 01:18:10]} {[%emt 00:00:15]} 24. Rhd1 {[%emt 00:02:49]} Red7 {[%clk
01:18:29]} {[%emt 00:00:10]} 25. Bd5 {[%clk 00:53:29]} {[%emt 00:04:00]} Ke7
{[%clk 01:18:08]} {[%emt 00:00:50]} 26. Rf1 {[%clk 00:35:38]} {[%emt 00:18:22]}
b6 {[%clk 01:05:24]} {[%emt 00:13:14]} 27. Re4 {[%clk 00:28:56]} {[%emt
00:07:13]} Rc7 {[%clk 01:05:24]} {[%emt 00:00:29]} 28. h4 {[%clk 00:11:19]}
{[%emt 00:18:07]} Re8 {[%clk 00:59:31]} {[%emt 00:06:23]} 29. Bxe6 {[%clk
00:11:43]} {[%emt 00:00:06]} fxe6 {[%clk 00:59:55]} {[%emt 00:00:05]} 30. Rg4
{[%clk 00:12:07]} {[%emt 00:00:06]} Kd8 {[%clk 00:58:24]} {[%emt 00:02:01]} 31.
Rg6 {[%clk 00:12:14]} {[%emt 00:00:24]} Rd7 {[%clk 00:56:53]} {[%emt 00:02:01]}
32. Rf4 {[%clk 00:10:23]} {[%emt 00:02:20]} Kc7 {[%clk 00:57:06]} {[%emt
00:00:17]} 33. Rfg4 {[%clk 00:04:50]} {[%emt 00:06:02]} Ree7 {[%clk 00:57:18]}
{[%emt 00:00:20]} 34. Rc4+ {[%clk 00:04:09]} {[%emt 00:01:11]} Kb7 {[%clk
00:57:41]} {[%emt 00:00:07]} 35. Rf4 {[%clk 00:04:09]} {[%emt 00:00:30]} Kc7
{[%clk 00:57:15]} {[%emt 00:00:56]} 36. Rc4+ {[%clk 00:04:09]} {[%emt
00:00:30]} Kb7 {[%clk 00:57:40]} {[%emt 00:00:05]} 37. Rf4 {[%clk 00:04:05]}
{[%emt 00:00:34]} Kc7 {[%clk 00:58:04]} {[%emt 00:00:06]} 38. Kd2 {[%clk
00:03:21]} {[%emt 00:01:14]} d5 {[%clk 00:53:29]} {[%emt 00:05:06]} 39. e4
{[%clk 00:03:26]} {[%emt 00:00:25]} d4 {[%clk 00:52:08]} {[%emt 00:01:50]} 40.
e5 {[%clk 00:30:32]} {[%emt 00:03:24]} dxc3+ {[%clk 01:22:28]} {[%emt
00:00:10]} 41. Kxc3 {[%clk 00:30:59]} {[%emt 00:00:03]} Rd5 {[%clk 01:22:10]}
{[%emt 00:00:47]} 42. Rfg4 {[%clk 00:23:35]} {[%emt 00:07:55]} Rxe5 {[%clk
01:18:52]} {[%emt 00:03:49]} 43. Rxg7 {[%emt 00:00:20]} 1/2-1/2

[Event "elllobregat Open Chess TnmT- 2nd Edition 2021"]
[Site "Castelldefels, Spain"]
[Date "2021.12.06"]
[Round "7.2"]
[White "Erigaisi, Arjun"]
[Black "Aditya, Mittal"]
[Result "1/2-1/2"]
[TimeControl "90min/40moves + 30min/end + 30sec increment per move starting from move 1"]
[WhiteTitle "GM"]
[BlackTitle "IM"]
[WhiteFideId "35009192"]
[BlackFideId "35042025"]
[WhiteElo "2627"]
[BlackElo "2459"]

1. Nf3 {[%clk 01:30:09]} {[%emt 00:00:17]} d5 {[%clk 01:30:49]} {[%emt
00:00:19]} 2. d4 {[%clk 01:30:33]} {[%emt 00:00:06]} Nf6 {[%clk 01:31:14]}
{[%emt 00:00:05]} 3. Bf4 {[%clk 01:30:58]} {[%emt 00:00:05]} c5 {[%clk
01:31:36]} {[%emt 00:00:08]} 4. e3 {[%clk 01:31:22]} {[%emt 00:00:06]} Nc6
{[%clk 01:32:00]} {[%emt 00:00:06]} 5. Nbd2 {[%clk 01:31:47]} {[%emt 00:00:05]}
Nh5 {[%emt 00:04:58]} 6. Be5 {[%clk 01:23:19]} {[%emt 00:06:13]} e6 {[%emt
00:04:15]} 7. Bb5 {[%clk 01:19:08]} {[%emt 00:00:57]} f6 {[%clk 01:16:44]}
{[%emt 00:14:01]} 8. Bg3 {[%clk 01:12:28]} {[%emt 00:07:09]} g6 {[%clk
01:12:33]} {[%emt 00:04:41]} 9. c4 {[%emt 00:03:05]} Nxg3 {[%clk 01:03:40]}
{[%emt 00:07:24]} 10. hxg3 {[%clk 01:11:56]} {[%emt 00:00:27]} cxd4 {[%clk
01:03:51]} {[%emt 00:00:18]} 11. exd4 {[%clk 01:06:02]} {[%emt 00:06:24]} a6
{[%clk 00:53:27]} {[%emt 00:10:55]} 12. Bxc6+ {[%clk 01:01:23]} {[%emt
00:05:09]} bxc6 {[%clk 00:53:55]} {[%emt 00:00:02]} 13. Qc2 {[%clk 01:01:51]}
{[%emt 00:00:02]} Kf7 {[%clk 00:49:13]} {[%emt 00:05:12]} 14. O-O-O {[%emt
00:04:58]} Qa5 {[%clk 00:44:26]} {[%emt 00:01:32]} 15. Kb1 {[%emt 00:05:39]} e5
{[%emt 00:02:30]} 16. Nh4 {[%clk 00:49:01]} {[%emt 00:08:53]} e4 {[%clk
00:35:40]} {[%emt 00:05:51]} 17. g4 {[%clk 00:49:12]} {[%emt 00:00:18]} Be6
{[%clk 00:22:23]} {[%emt 00:13:47]} 18. f3 {[%clk 00:43:12]} {[%emt 00:06:30]}
Bb4 {[%clk 00:19:05]} {[%emt 00:03:49]} 19. Nb3 {[%clk 00:35:43]} {[%emt
00:07:59]} Qa4 {[%clk 00:18:55]} {[%emt 00:00:40]} 20. fxe4 {[%clk 00:34:38]}
{[%emt 00:01:35]} dxc4 {[%clk 00:17:15]} {[%emt 00:02:10]} 21. d5 {[%clk
00:34:31]} {[%emt 00:00:36]} Bxg4 {[%clk 00:16:48]} {[%emt 00:00:56]} 22. Qxc4
{[%clk 00:33:22]} {[%emt 00:01:40]} Qb5 {[%clk 00:17:17]} {[%emt 00:00:02]} 23.
Rc1 {[%clk 00:31:55]} {[%emt 00:01:57]} Be2 {[%clk 00:14:49]} {[%emt 00:02:58]}
24. Qxc6 {[%clk 00:30:27]} {[%emt 00:01:58]} Rhe8 {[%clk 00:09:45]} {[%emt
00:05:34]} 25. Nf3 {[%clk 00:28:51]} {[%emt 00:02:05]} Qxc6 {[%clk 00:07:38]}
{[%emt 00:02:38]} 26. Rxc6 {[%clk 00:29:10]} {[%emt 00:00:10]} Bd3+ {[%clk
00:07:05]} {[%emt 00:01:04]} 27. Ka1 {[%clk 00:28:49]} {[%emt 00:00:51]} Bxe4
{[%clk 00:06:21]} {[%emt 00:01:14]} 28. Rxh7+ {[%clk 00:25:08]} {[%emt
00:04:11]} Kg8 {[%clk 00:06:49]} {[%emt 00:00:02]} 29. Rhc7 {[%clk 00:25:35]}
{[%emt 00:00:02]} Bxf3 {[%clk 00:05:08]} {[%emt 00:02:11]} 30. gxf3 {[%clk
00:25:46]} {[%emt 00:00:19]} Re1+ {[%clk 00:05:36]} {[%emt 00:00:01]} 31. Rc1
{[%clk 00:24:30]} {[%emt 00:01:46]} Rd8 {[%clk 00:04:40]} {[%emt 00:01:26]} 32.
a3 {[%clk 00:24:03]} {[%emt 00:00:57]} Rxc1+ {[%clk 00:05:09]} {[%emt
00:00:02]} 33. Rxc1 {[%clk 00:23:50]} {[%emt 00:00:42]} Bd6 {[%clk 00:05:07]}
{[%emt 00:00:32]} 34. Na5 {[%clk 00:22:09]} {[%emt 00:02:11]} Kf7 {[%emt
00:08:05]} 35. Ka2 {[%emt 00:02:10]} Be5 {[%clk 00:00:54]} {[%emt 00:01:02]} 36.
Rd1 {[%emt 00:00:23]} Rh8 {[%emt 00:02:21]} 37. d6 {[%clk 00:14:20]} {[%emt
00:01:20]} Rh2 {[%clk 00:01:03]} {[%emt 00:00:02]} 38. Nc4 {[%clk 00:14:36]}
{[%emt 00:00:15]} Ke8 {[%clk 00:01:15]} {[%emt 00:00:18]} 39. Rd5 {[%clk
00:03:45]} {[%emt 00:11:20]} Kd7 {[%clk 00:01:25]} {[%emt 00:00:21]} 40. Nxe5+
{[%clk 00:33:53]} {[%emt 00:00:21]} fxe5 {[%clk 00:31:52]} {[%emt 00:00:02]} 41.
Rxe5 {[%emt 00:13:39]} Rf2 {[%clk 00:14:21]} {[%emt 00:04:29]} 42. Re7+ {[%emt
00:07:35]} Kxd6 {[%clk 00:13:38]} {[%emt 00:00:09]} 43. Rg7 {[%clk 00:28:36]}
{[%emt 00:00:09]} Rg2 {[%clk 00:13:13]} {[%emt 00:00:55]} 44. Ra7 {[%emt
00:05:15]} Ke5 {[%emt 00:00:34]} 45. Rxa6 {[%clk 00:28:47]} {[%emt 00:00:02]}
Rg3 {[%emt 00:01:06]} 46. a4 {[%emt 00:00:12]} g5 {[%clk 00:07:45]} {[%emt
00:01:07]} 47. Rg6 {[%clk 00:28:55]} {[%emt 00:00:23]} Kd4 {[%clk 00:06:31]}
{[%emt 00:01:44]} 48. b3 {[%clk 00:27:13]} {[%emt 00:02:12]} Kc5 {[%clk
00:04:20]} {[%emt 00:02:42]} 49. Ka3 {[%clk 00:27:24]} {[%emt 00:00:19]} Rxf3
{[%clk 00:03:47]} {[%emt 00:01:03]} 50. Rxg5+ {[%clk 00:27:47]} {[%emt
00:00:06]} Kb6 {[%clk 00:04:14]} {[%emt 00:00:03]} 51. a5+ {[%clk 00:26:47]}
{[%emt 00:01:30]} Kc6 {[%clk 00:04:20]} {[%emt 00:00:24]} 52. Ka4 {[%clk
00:27:09]} {[%emt 00:00:08]} Rf1 {[%clk 00:04:43]} {[%emt 00:00:07]} 53. Rg6+
{[%clk 00:27:32]} {[%emt 00:00:06]} Kb7 {[%clk 00:05:03]} {[%emt 00:00:10]} 54.
b4 {[%clk 00:27:55]} {[%emt 00:00:07]} Rf5 {[%clk 00:05:17]} {[%emt 00:00:16]}
55. a6+ {[%clk 00:27:27]} {[%emt 00:00:58]} Ka7 {[%clk 00:05:27]} {[%emt
00:00:20]} 56. b5 {[%clk 00:27:51]} {[%emt 00:00:06]} Rf7 {[%clk 00:04:32]}
{[%emt 00:01:24]} 57. Ka5 {[%clk 00:28:11]} {[%emt 00:00:10]} Rf5 {[%clk
00:04:59]} {[%emt 00:00:03]} 58. Rg7+ {[%clk 00:27:47]} {[%emt 00:00:55]} Kb8
{[%clk 00:05:25]} {[%emt 00:00:05]} 59. Rd7 {[%clk 00:28:12]} {[%emt 00:00:04]}
Rh5 {[%clk 00:04:32]} {[%emt 00:01:22]} 60. Kb6 {[%clk 00:28:19]} {[%emt
00:00:24]} Rh6+ {[%clk 00:04:54]} {[%emt 00:00:09]} 61. Kc5 {[%clk 00:28:44]}
{[%emt 00:00:04]} Rh1 {[%clk 00:05:03]} {[%emt 00:00:23]} 62. Kc6 {[%clk
00:29:04]} {[%emt 00:00:09]} Rc1+ {[%clk 00:04:56]} {[%emt 00:00:38]} 63. Kb6
{[%clk 00:29:26]} {[%emt 00:00:07]} Rc8 {[%clk 00:05:23]} {[%emt 00:00:03]} 64.
a7+ {[%clk 00:28:37]} {[%emt 00:01:19]} Ka8 {[%clk 00:05:52]} {[%emt 00:00:02]}
65. Rd6 {[%clk 00:29:01]} {[%emt 00:00:05]} Rh8 {[%clk 00:05:53]} {[%emt
00:00:28]} 66. Kc7 {[%clk 00:26:37]} {[%emt 00:02:55]} Rh7+ {[%clk 00:05:45]}
{[%emt 00:00:38]} 67. Rd7 {[%clk 00:26:19]} {[%emt 00:00:47]} Rh5 {[%clk
00:00:49]} {[%emt 00:05:26]} 68. Kc6 {[%clk 00:25:54]} {[%emt 00:00:55]} Rc5+
{[%clk 00:01:06]} {[%emt 00:00:14]} 1/2-1/2

[Event "elllobregat Open Chess TnmT- 2nd Edition 2021"]
[Site "Castelldefels, Spain"]
[Date "2021.12.06"]
[Round "7.3"]
[White "Karthikeyan, Murali"]
[Black "Meshkovs, Nikita"]
[Result "1/2-1/2"]
[TimeControl "90min/40moves + 30min/end + 30sec increment per move starting from move 1"]
[WhiteTitle "GM"]
[BlackTitle "GM"]
[WhiteFideId "5074452"]
[BlackFideId "11602740"]
[WhiteElo "2630"]
[BlackElo "2557"]

1. e4 {[%clk 01:27:12]} {[%emt 00:03:47]} e5 {[%clk 01:30:46]} {[%emt
00:00:15]} 2. Nf3 {[%clk 01:27:37]} {[%emt 00:00:05]} Nc6 {[%clk 01:31:11]}
{[%emt 00:00:04]} 3. Bb5 {[%clk 01:28:02]} {[%emt 00:00:06]} a6 {[%clk
01:31:36]} {[%emt 00:00:05]} 4. Ba4 {[%clk 01:28:28]} {[%emt 00:00:04]} Nf6
{[%clk 01:32:00]} {[%emt 00:00:06]} 5. O-O {[%clk 01:28:53]} {[%emt 00:00:06]}
Nxe4 {[%clk 01:32:16]} {[%emt 00:00:14]} 6. d4 {[%clk 01:29:14]} {[%emt
00:00:08]} b5 {[%clk 01:32:41]} {[%emt 00:00:05]} 7. Bb3 {[%clk 01:29:39]}
{[%emt 00:00:05]} d5 {[%clk 01:33:07]} {[%emt 00:00:05]} 8. dxe5 {[%clk
01:30:04]} {[%emt 00:00:05]} Be6 {[%emt 00:00:06]} 9. Be3 {[%emt 00:01:05]} Be7
{[%clk 01:32:49]} {[%emt 00:00:15]} 10. c3 {[%clk 01:30:35]} {[%emt 00:00:20]}
Nc5 {[%emt 00:03:56]} 11. Bc2 {[%clk 01:27:02]} {[%emt 00:00:31]} Nd7 {[%clk
01:33:17]} {[%emt 00:14:42]} 12. Nbd2 {[%emt 00:04:56]} Ndxe5 {[%clk 01:28:36]}
{[%emt 00:02:48]} 13. Nxe5 {[%clk 01:09:10]} {[%emt 00:01:45]} Nxe5 {[%clk
01:29:03]} {[%emt 00:00:03]} 14. f4 {[%clk 01:06:15]} {[%emt 00:03:25]} Ng4
{[%clk 01:25:11]} {[%emt 00:04:23]} 15. Bd4 {[%emt 00:02:09]} Nf6 {[%emt
00:01:38]} 16. Qe2 {[%emt 00:27:26]} O-O {[%clk 00:55:12]} {[%emt 00:03:25]} 17.
Qd3 {[%emt 00:03:35]} g6 {[%emt 00:01:11]} 18. f5 {[%clk 00:58:47]} {[%emt
00:01:37]} Bc8 {[%emt 00:02:53]} 19. Qe3 {[%emt 00:18:17]} c5 {[%clk 00:38:19]}
{[%emt 00:12:51]} 20. Bxc5 {[%clk 00:42:12]} {[%emt 00:01:21]} Bxc5 {[%clk
00:38:48]} {[%emt 00:00:02]} 21. Qxc5 {[%clk 00:42:34]} {[%emt 00:00:08]} d4
{[%emt 00:03:42]} 22. Ne4 {[%clk 00:30:22]} {[%emt 00:09:12]} Nxe4 {[%emt
00:05:11]} 23. Bxe4 {[%clk 00:30:47]} {[%emt 00:00:03]} Rb8 {[%clk 00:34:51]}
{[%emt 00:00:07]} 24. Rad1 {[%clk 00:29:24]} {[%emt 00:01:52]} Qg5 {[%clk
00:34:06]} {[%emt 00:01:15]} 25. Rxd4 {[%clk 00:23:01]} {[%emt 00:06:54]} Re8
{[%emt 00:05:59]} 26. h4 {[%clk 00:21:01]} {[%emt 00:01:02]} Qg3 {[%clk
00:26:35]} {[%emt 00:03:58]} 27. Bc6 {[%emt 00:09:58]} Bb7 {[%clk 00:23:27]}
{[%emt 00:00:23]} 28. Bxb7 {[%clk 00:14:08]} {[%emt 00:01:11]} Rxb7 {[%emt
00:03:17]} 29. Qd6 {[%clk 00:09:11]} {[%emt 00:02:11]} Qxd6 {[%clk 00:21:53]}
{[%emt 00:02:33]} 30. Rxd6 {[%clk 00:09:40]} {[%emt 00:00:02]} b4 {[%clk
00:22:17]} {[%emt 00:00:06]} 31. c4 {[%clk 00:08:13]} {[%emt 00:01:57]} b3
{[%clk 00:22:46]} {[%emt 00:00:01]} 32. Rxa6 {[%emt 00:03:08]} bxa2 {[%clk
00:19:49]} {[%emt 00:00:45]} 33. Rxa2 {[%clk 00:08:33]} {[%emt 00:00:14]} gxf5
{[%clk 00:20:17]} {[%emt 00:00:01]} 34. Rxf5 {[%clk 00:08:32]} {[%emt
00:00:31]} Reb8 {[%clk 00:16:53]} {[%emt 00:03:54]} 35. c5 {[%emt 00:10:20]}
Rc7 {[%clk 00:10:25]} {[%emt 00:00:04]} 36. h5 {[%clk 00:05:48]} {[%emt
00:00:18]} h6 {[%emt 00:00:17]} 37. Ra6 {[%emt 00:06:42]} Kg7 {[%clk 00:04:32]}
{[%emt 00:01:00]} 38. Ra2 {[%clk 00:00:46]} {[%emt 00:04:57]} Rb5 {[%clk
00:03:34]} {[%emt 00:01:27]} 39. Kf2 {[%clk 00:00:42]} {[%emt 00:00:34]} Rcxc5
{[%emt 00:00:29]} 40. Rxc5 {[%clk 00:31:07]} {[%emt 00:00:04]} Rxc5 {[%clk
00:34:04]} {[%emt 00:00:01]} 41. b4 {[%emt 00:00:59]} Rxh5 {[%clk 00:32:09]}
{[%emt 00:01:33]} 42. Rb2 {[%clk 00:31:21]} {[%emt 00:00:39]} Rb5 {[%clk
00:28:46]} {[%emt 00:03:52]} 43. Ke3 {[%clk 00:31:49]} {[%emt 00:00:03]} Kf8
{[%clk 00:26:22]} {[%emt 00:02:54]} 44. Kd4 {[%clk 00:31:53]} {[%emt 00:00:25]}
Ke7 {[%clk 00:26:51]} {[%emt 00:00:02]} 45. Kc4 {[%clk 00:32:17]} {[%emt
00:00:06]} Rb8 {[%clk 00:25:15]} {[%emt 00:02:06]} 46. Kc5 {[%clk 00:29:26]}
{[%emt 00:03:21]} Kd7 {[%emt 00:06:07]} 47. b5 {[%clk 00:22:04]} {[%emt
00:01:46]} Kc7 {[%emt 00:02:32]} 48. b6+ {[%clk 00:19:12]} {[%emt 00:01:39]}
Kb7 {[%clk 00:25:41]} {[%emt 00:00:14]} 49. Rd2 {[%emt 00:05:45]} Rc8+ {[%clk
00:19:49]} {[%emt 00:00:50]} 50. Kb5 {[%clk 00:19:55]} {[%emt 00:00:05]} Rc3
{[%clk 00:20:14]} {[%emt 00:00:05]} 51. Rd7+ {[%clk 00:17:22]} {[%emt
00:03:03]} Kb8 {[%clk 00:20:28]} {[%emt 00:00:16]} 52. g4 {[%emt 00:04:23]} Rg3
{[%clk 00:18:54]} {[%emt 00:00:29]} 53. Rd4 {[%clk 00:15:27]} {[%emt 00:00:07]}
Kb7 {[%clk 00:18:46]} {[%emt 00:00:38]} 54. Rf4 {[%clk 00:14:20]} {[%emt
00:01:37]} f6 {[%clk 00:17:15]} {[%emt 00:02:01]} 55. Kc4 {[%emt 00:03:14]} Rh3
{[%clk 00:15:18]} {[%emt 00:01:11]} 56. Rxf6 {[%clk 00:12:03]} {[%emt
00:01:19]} Rh4 {[%clk 00:15:32]} {[%emt 00:00:17]} 57. Kb5 {[%clk 00:12:11]}
{[%emt 00:00:21]} Rxg4 {[%clk 00:15:56]} {[%emt 00:00:07]} 58. Rf7+ {[%clk
00:12:35]} {[%emt 00:00:05]} 1/2-1/2

[Event "elllobregat Open Chess TnmT- 2nd Edition 2021"]
[Site "Castelldefels, Spain"]
[Date "2021.12.06"]
[Round "7.4"]
[White "Beerdsen, Thomas"]
[Black "Abdusattorov, Nodirbek"]
[Result "0-1"]
[TimeControl "90min/40moves + 30min/end + 30sec increment per move starting from move 1"]
[WhiteTitle "IM"]
[BlackTitle "GM"]
[WhiteFideId "1030108"]
[BlackFideId "14204118"]
[WhiteElo "2484"]
[BlackElo "2646"]

1. e4 {[%clk 01:27:08]} {[%emt 00:03:50]} c6 {[%clk 01:30:44]} {[%emt
00:00:17]} 2. d4 {[%clk 01:26:53]} {[%emt 00:00:45]} d5 {[%clk 01:31:07]}
{[%emt 00:00:07]} 3. Nd2 {[%clk 01:27:15]} {[%emt 00:00:08]} dxe4 {[%clk
01:31:05]} {[%emt 00:00:31]} 4. Nxe4 {[%clk 01:27:39]} {[%emt 00:00:06]} Bf5
{[%clk 01:30:43]} {[%emt 00:00:52]} 5. Ng3 {[%clk 01:27:44]} {[%emt 00:00:24]}
Bg6 {[%clk 01:31:02]} {[%emt 00:00:11]} 6. h4 {[%clk 01:25:27]} {[%emt
00:02:47]} h6 {[%clk 01:30:51]} {[%emt 00:00:42]} 7. Nf3 {[%clk 01:24:39]}
{[%emt 00:01:18]} Nd7 {[%clk 01:30:24]} {[%emt 00:00:57]} 8. h5 {[%clk
01:23:13]} {[%emt 00:01:56]} Bh7 {[%clk 01:30:42]} {[%emt 00:00:12]} 9. Bd3
{[%clk 01:23:33]} {[%emt 00:00:10]} Bxd3 {[%clk 01:31:04]} {[%emt 00:00:09]} 10.
Qxd3 {[%clk 01:23:56]} {[%emt 00:00:06]} e6 {[%clk 01:31:20]} {[%emt 00:00:15]}
11. Bd2 {[%clk 01:23:01]} {[%emt 00:01:25]} Ngf6 {[%clk 01:30:52]} {[%emt
00:00:58]} 12. O-O-O {[%clk 01:22:53]} {[%emt 00:00:38]} Be7 {[%clk 01:30:49]}
{[%emt 00:00:34]} 13. Kb1 {[%clk 01:20:43]} {[%emt 00:02:39]} O-O {[%clk
01:30:58]} {[%emt 00:00:22]} 14. Ne4 {[%clk 01:19:24]} {[%emt 00:01:48]} c5
{[%clk 01:29:33]} {[%emt 00:01:55]} 15. Nxf6+ {[%clk 01:13:38]} {[%emt
00:06:17]} Nxf6 {[%clk 01:27:47]} {[%emt 00:02:15]} 16. Be3 {[%clk 00:58:42]}
{[%emt 00:15:26]} Rc8 {[%clk 01:16:38]} {[%emt 00:11:40]} 17. Ne5 {[%clk
00:55:12]} {[%emt 00:03:59]} Qc7 {[%clk 01:13:11]} {[%emt 00:03:57]} 18. c3
{[%clk 00:38:51]} {[%emt 00:16:50]} Nd5 {[%clk 01:05:59]} {[%emt 00:07:42]} 19.
Ka1 {[%clk 00:28:27]} {[%emt 00:10:54]} c4 {[%clk 00:54:18]} {[%emt 00:12:11]}
20. Qe2 {[%clk 00:22:45]} {[%emt 00:06:11]} b5 {[%clk 00:53:46]} {[%emt
00:01:03]} 21. Rh3 {[%clk 00:20:28]} {[%emt 00:02:46]} b4 {[%clk 00:42:47]}
{[%emt 00:11:31]} 22. Rg3 {[%clk 00:17:16]} {[%emt 00:03:41]} Kh7 {[%clk
00:40:44]} {[%emt 00:02:33]} 23. Bd2 {[%clk 00:10:45]} {[%emt 00:07:01]} bxc3
{[%clk 00:40:49]} {[%emt 00:00:26]} 24. Bxc3 {[%clk 00:09:57]} {[%emt
00:01:18]} Bd6 {[%clk 00:36:48]} {[%emt 00:04:31]} 25. Qg4 {[%clk 00:07:24]}
{[%emt 00:03:02]} Rg8 {[%clk 00:36:08]} {[%emt 00:01:11]} 26. Qe4+ {[%clk
00:06:33]} {[%emt 00:01:21]} f5 {[%clk 00:35:51]} {[%emt 00:00:46]} 27. Qc2
{[%clk 00:06:04]} {[%emt 00:00:58]} Bxe5 {[%clk 00:35:03]} {[%emt 00:01:19]} 28.
dxe5 {[%clk 00:06:27]} {[%emt 00:00:06]} Rgd8 {[%clk 00:35:10]} {[%emt
00:00:24]} 29. a3 {[%clk 00:06:01]} {[%emt 00:00:56]} Rd7 {[%clk 00:31:36]}
{[%emt 00:04:05]} 30. Qa4 {[%clk 00:04:20]} {[%emt 00:02:10]} Qb7 {[%clk
00:28:47]} {[%emt 00:03:19]} 31. Rd4 {[%clk 00:04:11]} {[%emt 00:00:39]} Rb8
{[%clk 00:27:40]} {[%emt 00:01:37]} 32. Qc2 {[%clk 00:03:50]} {[%emt 00:00:50]}
Qa6 {[%clk 00:26:58]} {[%emt 00:01:13]} 33. Rg6 {[%clk 00:03:32]} {[%emt
00:00:48]} Rb3 {[%clk 00:27:12]} {[%emt 00:00:17]} 34. Rxd5 {[%clk 00:01:18]}
{[%emt 00:02:43]} Rxd5 {[%clk 00:26:35]} {[%emt 00:01:07]} 35. Rg3 {[%clk
00:00:51]} {[%emt 00:00:57]} Qa4 {[%clk 00:26:21]} {[%emt 00:00:44]} 36. Qe2
{[%clk 00:00:46]} {[%emt 00:00:35]} Rd1+ {[%clk 00:26:03]} {[%emt 00:00:48]}
0-1